bitfinex/quotes_SOLUSD_20251103
["timestamp","ask_amount","ask_price","bid_price","bid_amount"]
[1762188376871,5.07420254,168.92,168.9,5.92066311]
[1762188377087,12.59015553,168.92,168.9,5.92066311]
[1762188377794,5.07420254,168.92,168.91,0.66]
[1762188378475,5.07420254,168.92,168.9,5.92066311]
[1762188378791,5.07420254,168.92,168.9,6.58066311]
[1762188379087,0.1,168.95,168.9,6.58066311]
[1762188379088,0.1,168.95,168.93,0.14216157]
[1762188379297,0.1,168.96,168.93,0.14216157]
[1762188379298,0.1,168.96,168.95,0.14216157]
[1762188379792,4.9980802,168.98,168.95,16.50990018]
[1762188380101,7.51595299,168.98,168.95,21.51834979]
[1762188380301,7.51595299,168.98,168.95,6.06107249]
[1762188380509,0.1,168.99,168.96,0.66]
[1762188380688,7.61595299,168.99,168.96,0.66]
[1762188380875,7.51595299,168.98,168.95,5.91891092]
[1762188381199,7.51595299,168.98,168.86,1.99999999]
[1762188381200,7.51595299,168.96,168.88,9.78882769]
[1762188381391,7.51595299,168.92,168.89,0.66]
[1762188381579,7.51595299,168.92,168.9,5.92066311]
[1762188381784,7.51595299,168.93,168.9,5.92066311]
[1762188382082,7.51595299,168.95,168.91,0.66]
[1762188382281,28.10795299,168.96,168.92,9.78882769]
[1762188382483,28.10795299,168.96,168.93,0.14216157]
[1762188382688,28.10795299,168.96,168.93,0.80216157]
[1762188382981,7.51595299,168.95,168.93,0.80216157]
[1762188383582,4.95564158,168.99,168.94,20.71741446]
[1762188383784,7.51595299,168.96,168.94,20.71741446]
[1762188384596,7.51595299,168.95,168.86,30.2696405]
[1762188384801,7.51595299,168.89,168.87,5.92171492]
[1762188385003,7.51595299,168.88,168.82,0.66]
[1762188385296,7.51595299,168.85,168.82,0.14216157]
[1762188385504,7.51595299,168.85,168.84,20.592]
[1762188385691,7.51595299,168.85,168.82,0.66]
[1762188385692,7.51595299,168.85,168.83,15.71194561]
[1762188385877,7.51595299,168.84,168.82,5.9231728]
[1762188386081,7.51595299,168.83,168.76,0.66]
[1762188386283,7.51595299,168.79,168.76,0.66]
[1762188386479,20.592,168.91,168.78,9.78882769]
[1762188386697,7.51595299,168.83,168.78,9.78882769]
[1762188386901,20.592,168.86,168.78,10.44882769]
[1762188386902,7.51595299,168.81,168.78,10.44882769]
[1762188387202,7.51595299,168.81,168.74,20.592]
[1762188387203,7.51595299,168.79,168.74,6.58619126]
[1762188387406,7.51595299,168.75,168.74,5.92619126]
[1762188387904,20.592,168.85,168.74,15.47569278]
[1762188388106,7.51595299,168.81,168.75,0.66]
[1762188388287,28.10795299,168.82,168.76,9.93098926]
[1762188388603,7.51595299,168.83,168.76,9.93098926]
[1762188388788,7.51595299,168.86,168.78,9.93098926]
[1762188388982,3.9591677,168.93,168.78,9.93098926]
[1762188389182,3.9591677,168.92,168.8,9.93098926]
[1762188389388,7.51595299,168.9,168.8,9.93098926]
[1762188389604,7.51595299,168.9,168.82,9.93098926]
[1762188389794,7.51595299,168.9,168.85,0.14216157]
[1762188390305,7.51595299,168.87,168.85,0.14216157]
[1762188390704,7.51595299,168.89,168.85,0.86216157]
[1762188391298,7.51595299,168.88,168.85,0.14216157]
[1762188391597,7.51595299,168.86,168.82,21.45202227]
[1762188391806,7.51595299,168.84,168.82,5.92335032]
[1762188392012,7.51595299,168.83,168.82,5.92335032]
[1762188392313,7.51595299,168.83,168.7,0.71]
[1762188392516,20.592,168.84,168.71,5.92733092]
[1762188392517,7.51595299,168.74,168.71,5.92733092]
[1762188392700,7.51595299,168.74,168.71,20.74565822]
[1762188392889,7.51595299,168.74,168.72,0.71]
[1762188393591,0.14216157,168.9,168.72,0.71]
[1762188393894,20.592,168.81,168.75,0.14216157]
[1762188394095,28.10795299,168.81,168.75,0.14216157]
[1762188394297,28.10795299,168.81,168.77,0.14216157]
[1762188394803,7.51595299,168.79,168.77,0.14216157]
[1762188394995,7.51595299,168.78,168.76,0.14216157]
[1762188395190,7.51595299,168.77,168.74,9.78882769]
[1762188395493,7.51595299,168.77,168.74,10.49882769]
[1762188395695,7.51595299,168.77,168.75,5.92592592]
[1762188395895,7.51595299,168.76,168.69,14.82008417]
[1762188396098,20.592,168.78,168.63,0.2]
[1762188396099,20.592,168.75,168.7,0.71]
[1762188396320,20.592,168.81,168.71,9.78882769]
[1762188396609,28.10795299,168.77,168.71,9.78882769]
[1762188396788,7.51595299,168.76,168.71,0.71]
[1762188396986,7.51595299,168.75,168.72,0.14216157]
[1762188397190,7.51595299,168.76,168.72,0.14216157]
[1762188397396,7.51595299,168.76,168.73,9.93098926]
[1762188397812,7.51595299,168.76,168.74,5.92627711]
[1762188398001,7.51595299,168.77,168.74,20.74196989]
[1762188398316,20.592,168.78,168.75,0.85216157]
[1762188398704,7.51595299,168.81,168.77,0.14216157]
[1762188398901,24.59137483,168.89,168.77,0.14216157]
[1762188398902,7.51595299,168.8,168.77,0.14216157]
[1762188399204,7.51595299,168.78,168.74,5.92627711]
[1762188399411,7.51595299,168.75,168.74,5.92627711]
[1762188399596,7.51595299,168.76,168.74,5.92627711]
[1762188399797,7.51595299,168.75,168.74,0.14216157]
[1762188400515,7.51595299,168.75,168.73,20.74241259]
[1762188401392,7.51595299,168.77,168.74,0.85216157]
[1762188401606,7.51595299,168.77,168.74,0.14216157]
[1762188402012,28.10795299,168.78,168.75,20.74074073]
[1762188402494,7.51595299,168.76,168.72,14.8167862]
[1762188402689,20.592,168.78,168.71,15.71615861]
[1762188402893,20.592,168.78,168.72,0.71]
[1762188402894,7.51595299,168.77,168.72,0.71]
[1762188403190,28.10795299,168.78,168.73,9.93098926]
[1762188403609,7.51595299,168.74,168.73,0.14216157]
[1762188404008,7.51595299,168.76,168.74,5.92627711]
[1762188404997,28.10795299,168.78,168.74,5.92627711]
[1762188405194,28.10795299,168.78,168.74,21.45196989]
[1762188405396,7.51595299,168.77,168.74,20.74196989]
[1762188405915,20.592,168.78,168.75,0.71]
[1762188406596,20.592,168.78,168.76,0.14216157]
[1762188406796,20.592,168.77,168.76,0.14216157]
[1762188407209,7.51595299,168.78,168.76,0.14216157]
[1762188407719,20.592,168.77,168.76,0.14216157]
[1762188407922,28.10795299,168.77,168.72,14.81734311]
[1762188408103,7.51595299,168.76,168.73,9.93098926]
[1762188408418,7.51595299,168.76,168.73,10.64098926]
[1762188408603,7.51595299,168.77,168.73,10.64098926]
[1762188408805,61.1,168.86,168.75,0.14216157]
[1762188409024,7.51595299,168.82,168.75,0.14216157]
[1762188409234,7.51595299,168.82,168.77,9.93098926]
[1762188409434,7.51595299,168.83,168.77,9.93098926]
[1762188409732,5.75034838,168.86,168.72,35.40934311]
[1762188409733,13.26630137,168.86,168.79,9.93098926]
[1762188409935,7.51595299,168.86,168.81,9.93098926]
[1762188410525,5.92069186,168.9,168.8,5.92417061]
[1762188410526,7.51595299,168.83,168.8,5.92417061]
[1762188410829,7.51595299,168.82,168.8,0.14216157]
[1762188411017,7.51595299,168.83,168.8,0.14216157]
[1762188411843,7.51595299,168.83,168.81,5.92381967]
[1762188412340,28.10795299,168.85,168.82,0.14216157]
[1762188412713,20.592,168.83,168.82,0.14216157]
[1762188413037,28.10795299,168.83,168.8,6.06622228]
[1762188413834,7.51595299,168.82,168.8,6.06622228]
[1762188414530,7.51595299,168.81,168.8,6.06622228]
[1762188415039,7.51595299,168.82,168.8,6.06622228]
[1762188415334,7.51595299,168.81,168.8,5.92406071]
[1762188415652,20.592,168.81,168.8,5.92406071]
[1762188415942,20.592,168.81,168.8,31.37547651]
[1762188416148,20.592,168.81,168.8,10.64098926]
[1762188416327,4.87543952,168.81,168.75,6.63592592]
[1762188416535,4.87543952,168.78,168.76,9.78882769]
[1762188416825,4.87543952,168.78,168.77,0.14216157]
[1762188417033,20.592,168.77,168.72,5.92697961]
[1762188417251,4.87543952,168.75,168.72,5.92697961]
[1762188417751,4.87543952,168.74,168.72,6.63697961]
[1762188418421,4.87543952,168.74,168.72,21.45442863]
[1762188418635,20.592,168.78,168.72,21.45442863]
[1762188418636,20.592,168.78,168.73,10.49882769]
[1762188418838,5.54053502,168.86,168.73,10.49882769]
[1762188419044,4.87543952,168.78,168.74,0.85216157]
[1762188419215,20.592,168.83,168.76,0.14216157]
[1762188419414,4.87543952,168.79,168.76,0.14216157]
[1762188419919,4.87543952,168.79,168.77,5.92522367]
[1762188420125,4.87543952,168.78,168.77,5.92522367]
[1762188420326,25.46743952,168.81,168.78,0.14216157]
[1762188420547,4.87543952,168.81,168.78,0.14216157]
[1762188420740,5.67937966,168.86,168.8,0.14216157]
[1762188420948,4.87543952,168.81,168.77,9.93098926]
[1762188421254,4.87543952,168.78,168.62,1.99999999]
[1762188421430,4.87543952,168.73,168.69,0.71]
[1762188421740,4.87543952,168.74,168.7,9.93098926]
[1762188422046,4.87543952,168.76,168.71,15.5283273]
[1762188422222,4.87543952,168.74,168.72,9.93098926]
[1762188422558,4.87543952,168.73,168.7,5.92768227]
[1762188422844,20.592,168.79,168.71,9.78882769]
[1762188423062,4.87543952,168.72,168.64,5.92979127]
[1762188423227,4.87543952,168.65,168.62,15.53555196]
[1762188423551,4.87543952,168.65,168.63,20.95543177]
[1762188423841,20.592,168.75,168.64,0.71]
[1762188424027,9.78882769,168.81,168.66,9.93098926]
[1762188424220,4.87543952,168.72,168.66,9.93098926]
[1762188424418,4.87543952,168.71,168.68,9.93098926]
[1762188424624,4.87543952,168.74,168.7,9.93098926]
[1762188424838,4.87543952,168.77,168.72,9.93098926]
[1762188425145,4.87543952,168.78,168.72,9.93098926]
[1762188425447,4.87543952,168.77,168.72,9.93098926]
[1762188425851,4.87543952,168.76,168.72,10.64098926]
[1762188426144,4.87543952,168.77,168.74,0.14216157]
[1762188426352,20.592,168.79,168.74,0.14216157]
[1762188426522,4.87543952,168.81,168.76,9.93098926]
[1762188426717,4.87543952,168.82,168.76,9.93098926]
[1762188426922,4.87543952,168.8,168.76,0.14216157]
[1762188427144,25.46743952,168.77,168.71,5.92733092]
[1762188427349,4.87543952,168.73,168.71,5.92733092]
[1762188427722,4.87543952,168.73,168.71,6.63733092]
[1762188427920,4.87543952,168.75,168.72,0.14216157]
[1762188428146,4.87543952,168.75,168.73,5.92662834]
[1762188428552,4.87543952,168.78,168.74,0.85216157]
[1762188428730,61.1,168.83,168.76,0.14216157]
[1762188428930,25.46743952,168.8,168.76,0.14216157]
[1762188429242,4.87543952,168.77,168.74,0.14216157]
[1762188429631,4.87543952,168.77,168.73,5.92662834]
[1762188429832,4.87543952,168.75,168.73,5.92662834]
[1762188430042,4.87543952,168.77,168.73,21.45319919]
[1762188430232,4.87543952,168.77,168.73,5.92662834]
[1762188430432,4.87543952,168.75,168.72,5.92694757]
[1762188430829,4.87543952,168.76,168.72,5.92694757]
[1762188431029,4.87543952,168.76,168.72,21.45439659]
[1762188431323,4.87543952,168.73,168.72,5.92694757]
[1762188432136,4.87543952,168.73,168.7,6.06984384]
[1762188432344,4.87543952,168.71,168.67,14.82181757]
[1762188432546,4.87543952,168.69,168.67,14.82181757]
[1762188433058,4.87543952,168.69,168.67,15.53181757]
[1762188433240,4.87543952,168.69,168.68,5.92831875]
[1762188433573,4.87543952,168.69,168.64,5.92973151]
[1762188433860,4.87543952,168.66,168.64,6.63973151]
[1762188434023,4.87543952,168.65,168.63,6.13005883]
[1762188434227,4.87543952,168.64,168.63,0.2]
[1762188434440,4.87543952,168.65,168.63,6.84014291]
[1762188434647,4.87543952,168.64,168.63,0.2]
[1762188434847,4.87543952,168.64,168.63,6.13014291]
[1762188435044,4.87543952,168.65,168.63,6.13014291]
[1762188435648,4.87543952,168.64,168.63,0.2]
[1762188436028,20.592,168.67,168.63,0.2]
[1762188436227,14.90198533,168.72,168.63,0.2]
[1762188436228,4.87543952,168.66,168.63,0.2]
[1762188436445,4.87543952,168.64,168.63,0.2]
[1762188439454,31.39723079,168.64,168.63,0.2]
[1762188439641,10.80523079,168.64,168.63,0.2]
[1762188439843,25.46743952,168.64,168.63,0.2]
[1762188440469,4.87543952,168.64,168.63,0.2]
[1762188441665,25.46743952,168.64,168.63,0.2]
[1762188442171,20.592,168.66,168.63,0.2]
[1762188442366,4.87543952,168.64,168.63,6.13003605]
[1762188442560,4.87543952,168.64,168.63,0.2]
[1762188443467,4.87543952,168.62,168.61,0.2]
[1762188444842,20.592,168.66,168.61,6.84084633]
[1762188445042,4.87543952,168.64,168.61,6.84084633]
[1762188445263,20.592,168.66,168.61,6.84084633]
[1762188445447,84.55912872,168.69,168.61,6.84084633]
[1762188445448,4.87543952,168.65,168.61,15.02711582]
[1762188445643,4.87543952,168.62,168.61,6.98300482]
[1762188445848,4.87543952,168.7,168.62,0.71]
[1762188446066,4.87543952,168.63,168.62,0.85216157]
[1762188446651,4.87543952,168.64,168.62,0.85216157]
[1762188446869,20.592,168.7,168.62,0.85216157]
[1762188447068,4.87543952,168.65,168.63,0.14216157]
[1762188447269,4.87543952,168.65,168.63,0.85216157]
[1762188447467,4.87543952,168.67,168.64,20.75426944]
[1762188447662,4.87543952,168.66,168.64,20.75426944]
[1762188447863,4.87543952,168.66,168.64,21.42426944]
[1762188448266,4.87543952,168.67,168.65,0.67]
[1762188448792,4.97099607,168.83,168.66,0.14216157]
[1762188448958,4.87543952,168.73,168.69,0.14216157]
[1762188449158,4.87543952,168.72,168.69,0.14216157]
[1762188449353,4.87543952,168.8,168.7,0.67]
[1762188449354,4.87543952,168.71,168.7,0.67]
[1762188449567,4.87543952,168.71,168.7,6.59768227]
[1762188450270,4.87543952,168.72,168.71,0.14216157]
[1762188450489,4.87543952,168.73,168.71,0.14216157]
[1762188450682,4.87543952,168.73,168.71,0.81216157]
[1762188450858,4.87543952,168.72,168.7,5.92768227]
[1762188451065,4.87543952,168.71,168.7,5.92768227]
[1762188451264,4.87543952,168.71,168.69,0.67]
[1762188451673,4.87543952,168.7,168.69,6.74014096]
[1762188452177,4.87543952,168.71,168.69,6.74014096]
[1762188452383,4.87543952,168.7,168.67,0.72]
[1762188452555,4.87543952,168.7,168.65,9.78882769]
[1762188452556,4.87543952,168.68,168.66,5.92899559]
[1762188452756,9.78882769,168.76,168.67,0.72]
[1762188453380,41.33029529,168.77,168.67,0.72]
[1762188453553,9.78882769,168.76,168.67,6.64863127]
[1762188453760,20.592,168.72,168.67,5.92863127]
[1762188453972,25.46743952,168.68,168.67,5.92863127]
[1762188454372,81.692,168.71,168.67,6.64863127]
[1762188454561,4.87543952,168.68,168.67,6.64863127]
[1762188454769,4.87543952,168.69,168.67,5.92863127]
[1762188455085,25.46743952,168.69,168.68,0.14216157]
[1762188455385,25.46743952,168.69,168.68,0.72]
[1762188455576,25.46743952,168.69,168.68,6.6483851]
[1762188456077,25.46743952,168.69,168.65,0.14216157]
[1762188456078,20.592,168.68,168.65,0.14216157]
[1762188456260,4.87543952,168.66,168.64,5.92979127]
[1762188456458,20.592,168.68,168.64,21.47426944]
[1762188456660,4.87543952,168.67,168.65,0.72]
[1762188456879,4.87543952,168.7,168.66,0.14216157]
[1762188457065,4.87543952,168.67,168.65,0.72]
[1762188457376,4.87543952,168.66,168.65,0.72]
[1762188457679,4.87543952,168.66,168.65,6.79160123]
[1762188458666,20.592,168.71,168.65,6.79160123]
[1762188458870,4.87543952,168.67,168.65,6.79160123]
[1762188459065,4.87543952,168.66,168.65,6.79160123]
[1762188459663,4.87543952,168.67,168.65,21.61520039]
[1762188459885,4.87543952,168.69,168.66,0.86216157]
[1762188460183,4.87543952,168.7,168.66,0.86216157]
[1762188461087,4.87543952,168.69,168.66,0.86216157]
[1762188461390,4.87543952,168.68,168.66,0.86216157]
[1762188461887,4.87543952,168.69,168.68,0.14216157]
[1762188462468,4.87543952,168.69,168.68,0.86216157]
[1762188462872,4.87543952,168.7,168.68,0.86216157]
[1762188463083,4.87543952,168.69,168.68,0.72]
[1762188463283,4.87543952,168.69,168.67,5.92873658]
[1762188463481,25.46743952,168.68,168.62,0.72]
[1762188463683,4.87543952,168.63,168.61,0.92]
[1762188463988,4.87543952,168.64,168.63,0.14216157]
[1762188464174,4.87543952,168.64,168.62,0.72]
[1762188465265,4.87543952,168.63,168.62,0.86216157]
[1762188465467,20.592,168.67,168.62,0.72]
[1762188465670,4.87543952,168.66,168.63,9.78882769]
[1762188465864,4.87543952,168.66,168.65,0.14216157]
[1762188466292,20.592,168.71,168.65,0.86216157]
[1762188466490,5.92498822,168.78,168.66,9.78882769]
[1762188466670,4.87543952,168.71,168.66,9.78882769]
[1762188466870,4.87543952,168.71,168.68,0.14216157]
[1762188467090,4.87543952,168.72,168.68,9.93098926]
[1762188467272,4.87543952,168.72,168.7,0.14216157]
[1762188467482,4.87543952,168.71,168.7,6.06984384]
[1762188468691,4.87543952,168.71,168.69,5.9279451]
[1762188468991,4.87543952,168.7,168.69,5.9279451]
[1762188469177,4.87543952,168.71,168.69,20.74802927]
[1762188469384,65.97543952,168.72,168.7,0.14216157]
[1762188469576,61.1,168.72,168.7,0.14216157]
[1762188469776,4.87543952,168.71,168.7,6.0697908]
[1762188470187,4.97099607,168.82,168.7,36.42820218]
[1762188470368,61.1,168.84,168.72,0.14216157]
[1762188470573,4.87543952,168.78,168.72,0.14216157]
[1762188470774,4.87543952,168.79,168.74,9.93098926]
[1762188471082,4.87543952,168.78,168.74,9.93098926]
[1762188471286,4.87543952,168.75,168.71,9.78882769]
[1762188471483,4.87543952,168.74,168.73,6.06878991]
[1762188471792,4.87543952,168.75,168.73,6.06878991]
[1762188471990,4.87543952,168.75,168.73,6.78878991]
[1762188472199,4.87543952,168.75,168.74,0.72]
[1762188473296,4.87543952,168.75,168.69,15.71683729]
[1762188473495,4.87543952,168.7,168.69,5.92795144]
[1762188473700,4.87543952,168.7,168.64,0.72]
[1762188473901,4.87543952,168.7,168.58,14.81741105]
[1762188473902,4.87543952,168.65,168.58,15.53741105]
[1762188474092,10.80336862,168.7,168.59,0.72]
[1762188474093,4.87543952,168.62,168.59,0.72]
[1762188474407,4.87543952,168.63,168.62,0.72]
[1762188474587,4.87543952,168.63,168.57,6.13196225]
[1762188474793,4.87543952,168.62,168.57,0.2]
[1762188475382,25.46743952,168.62,168.57,0.2]
[1762188476008,4.87543952,168.62,168.57,6.13219337]
[1762188476185,4.87543952,168.62,168.57,0.2]
[1762188476384,9.78882769,168.67,168.57,0.2]
[1762188476589,7.54091725,168.62,168.57,0.2]
[1762188477096,7.54091725,168.62,168.58,6.65162388]
[1762188477304,7.54091725,168.62,168.58,0.72]
[1762188477501,7.54091725,168.62,168.57,6.13223502]
[1762188477694,7.54091725,168.62,168.58,5.93189126]
[1762188477901,7.54091725,168.62,168.57,0.2]
[1762188479585,7.54091725,168.62,168.58,5.93178528]
[1762188479914,7.54091725,168.62,168.57,0.2]
[1762188480931,20.592,168.59,168.57,0.2]
[1762188481087,7.54091725,168.58,168.57,0.2]
[1762188481785,20.592,168.58,168.57,0.2]
[1762188481989,28.13291725,168.58,168.57,0.2]
[1762188482485,28.13291725,168.58,168.48,0.65]
[1762188482486,32.10414229,168.58,168.48,0.65]
[1762188482683,7.54091725,168.49,168.44,0.2]
[1762188482990,7.54091725,168.47,168.44,0.2]
[1762188483512,7.54091725,168.48,168.44,0.2]
[1762188483713,7.54091725,168.47,168.44,0.2]
[1762188483885,28.13291725,168.5,168.46,6.78612727]
[1762188484092,7.54091725,168.55,168.48,0.14216157]
[1762188484290,7.54091725,168.54,168.48,0.14216157]
[1762188484498,31.08961575,168.6,168.46,20.97644544]
[1762188484499,7.54091725,168.49,168.46,0.85]
[1762188484725,7.54091725,168.47,168.46,6.27828884]
[1762188485200,7.54091725,168.47,168.46,0.2]
[1762188485621,7.54091725,168.47,168.46,0.85]
[1762188486516,7.54091725,168.47,168.46,0.2]
[1762188487016,7.54091725,168.47,168.46,0.85]
[1762188487203,20.592,168.52,168.46,6.78612727]
[1762188487400,24.62025958,168.57,168.47,0.65]
[1762188487401,7.54091725,168.48,168.47,0.65]
[1762188487717,7.54091725,168.48,168.46,0.2]
[1762188487897,7.54091725,168.47,168.46,0.2]
[1762188488699,28.13291725,168.47,168.46,0.2]
[1762188489207,61.1,168.53,168.47,0.14216157]
[1762188489208,7.54091725,168.48,168.47,0.14216157]
[1762188489407,7.54091725,168.48,168.47,0.65]
[1762188489613,7.54091725,168.48,168.46,6.13600729]
[1762188489915,7.54091725,168.47,168.46,0.85]
[1762188490121,7.54091725,168.49,168.47,0.65]
[1762188490508,7.54091725,168.48,168.47,0.65]
[1762188490821,7.54091725,168.48,168.46,6.13612727]
[1762188491025,7.54091725,168.47,168.46,0.85]
[1762188491201,7.54091725,168.47,168.46,0.2]
[1762188491601,7.54091725,168.47,168.44,0.2]
[1762188491602,20.592,168.45,168.44,0.2]
[1762188491802,34.06939691,168.45,168.44,0.2]
[1762188492002,34.06939691,168.45,168.33,6.69064418]
[1762188492003,20.592,168.41,168.33,6.69064418]
[1762188492322,20.592,168.37,168.33,6.69064418]
[1762188492511,7.54091725,168.35,168.34,0.65]
[1762188492909,0.69,168.45,168.34,0.65]
[1762188493111,7.54091725,168.41,168.35,9.93098926]
[1762188493314,7.54091725,168.39,168.35,9.93098926]
[1762188493622,7.54091725,168.38,168.35,0.65]
[1762188493818,7.54091725,168.38,168.36,5.93965312]
[1762188494013,7.54091725,168.4,168.37,0.14216157]
[1762188494625,7.54091725,168.38,168.37,0.14216157]
[1762188494825,7.54091725,168.4,168.37,0.14216157]
[1762188495029,7.54091725,168.4,168.37,9.93098926]
[1762188495324,7.54091725,168.38,168.37,0.14216157]
[1762188495551,7.54091725,168.39,168.37,0.14216157]
[1762188495902,7.54091725,168.4,168.38,5.93894761]
[1762188496105,0.69,168.42,168.36,6.08181469]
[1762188496106,7.54091725,168.39,168.36,6.08181469]
[1762188496341,20.592,168.41,168.33,6.04070732]
[1762188496533,7.54091725,168.35,168.33,6.04070732]
[1762188497028,7.54091725,168.36,168.34,0.14216157]
[1762188497234,7.54091725,168.48,168.34,0.14216157]
[1762188497530,7.54091725,168.39,168.34,10.58098926]
[1762188497734,7.54091725,168.36,168.34,0.14216157]
[1762188498030,20.592,168.42,168.35,6.08216751]
[1762188498231,7.54091725,168.36,168.35,6.08216751]
[1762188498537,7.54091725,168.36,168.33,6.18256451]
[1762188498829,7.54091725,168.34,168.33,6.18256451]
[1762188499838,7.54091725,168.34,168.33,6.04071169]
[1762188500136,7.54091725,168.34,168.33,0.1]
[1762188500348,7.54091725,168.34,168.33,6.04071169]
[1762188501143,7.54091725,168.34,168.33,0.1]
[1762188501518,7.54091725,168.34,168.33,6.18287326]
[1762188501919,7.54091725,168.35,168.33,21.0346525]
[1762188502414,8.23091725,168.34,168.33,0.1]
[1762188503058,7.54091725,168.34,168.33,0.1]
[1762188503723,28.82291725,168.34,168.33,0.1]
[1762188504125,7.54091725,168.34,168.33,6.04071169]
[1762188504439,7.54091725,168.34,168.33,0.1]
[1762188504821,61.1,168.37,168.33,6.04071169]
[1762188505025,7.54091725,168.34,168.33,6.04071169]
[1762188505334,7.54091725,168.37,168.34,0.14216157]
[1762188505547,7.54091725,168.42,168.34,10.58098926]
[1762188505720,0.69,168.43,168.36,0.14216157]
[1762188505721,7.54091725,168.41,168.36,0.14216157]
[1762188506351,0.69,168.48,168.38,9.93098926]
[1762188506638,7.54091725,168.43,168.38,9.93098926]
[1762188506847,7.54091725,168.42,168.38,9.93098926]
[1762188507050,7.54091725,168.41,168.38,9.93098926]
[1762188507262,7.54091725,168.42,168.38,10.65098926]
[1762188507554,7.54091725,168.4,168.38,0.14216157]
[1762188507726,7.54091725,168.41,168.38,0.14216157]
[1762188507925,7.54091725,168.45,168.38,10.65098926]
[1762188508157,7.54091725,168.43,168.41,0.14216157]
[1762188508323,20.592,168.46,168.39,5.93859492]
[1762188508324,7.54091725,168.42,168.39,5.93859492]
[1762188508517,7.54091725,168.4,168.38,6.08110443]
[1762188508722,7.54091725,168.39,168.34,5.94035879]
[1762188508960,20.592,168.4,168.34,5.94035879]
[1762188508961,7.54091725,168.35,168.34,5.94035879]
[1762188509121,7.54091725,168.35,168.33,0.1]
[1762188509344,7.54091725,168.34,168.33,0.1]
[1762188509771,8.26091725,168.34,168.33,0.1]
[1762188509983,0.72,168.34,168.33,0.1]
[1762188510151,8.26091725,168.34,168.33,0.1]
[1762188510345,21.312,168.34,168.33,0.1]
[1762188510569,28.85291725,168.34,168.33,0.1]
[1762188511148,34.79327604,168.34,168.33,0.1]
[1762188511350,20.592,168.33,168.27,0.1]
[1762188511574,20.592,168.25,168.19,0.72]
[1762188511850,20.592,168.25,168.16,50.64704231]
[1762188512049,7.54091725,168.25,168.18,9.93098926]
[1762188512249,21.312,168.31,168.2,9.93098926]
[1762188512473,7.54091725,168.3,168.22,0.14216157]
[1762188512675,7.54091725,168.29,168.22,0.14216157]
[1762188512977,26.65938845,168.31,168.19,41.40179843]
[1762188512978,33.4803057,168.31,168.24,9.93098926]
[1762188513166,5.34738845,168.31,168.24,9.93098926]
[1762188513477,7.54091725,168.32,168.26,9.93098926]
[1762188513771,0.7,168.39,168.26,9.93098926]
[1762188513973,7.54091725,168.33,168.28,9.93098926]
[1762188514177,7.54091725,168.32,168.3,0.14216157]
[1762188514471,7.54091725,168.31,168.26,0.14216157]
[1762188514656,7.54091725,168.31,168.26,20.94329597]
[1762188514855,7.54091725,168.33,168.28,0.14216157]
[1762188515070,61.1,168.32,168.28,0.14216157]
[1762188515255,61.1,168.32,168.28,0.86216157]
[1762188515774,68.64091725,168.32,168.28,0.86216157]
[1762188515957,7.54091725,168.31,168.28,0.14216157]
[1762188516170,7.54091725,168.32,168.29,5.94212371]
[1762188516353,7.54091725,168.3,168.28,6.08461629]
[1762188516553,7.54091725,168.31,168.28,6.08461629]
[1762188517055,20.592,168.36,168.26,14.85795792]
[1762188517056,7.54091725,168.29,168.27,6.08491544]
[1762188517258,7.54091725,168.28,168.27,6.08491544]
[1762188517454,7.54091725,168.29,168.27,6.08491544]
[1762188517869,7.54091725,168.3,168.27,6.08491544]
[1762188518274,7.54091725,168.32,168.27,20.94199037]
[1762188518461,7.54091725,168.32,168.27,21.66199037]
[1762188518859,7.54091725,168.33,168.29,0.14216157]
[1762188519161,7.54091725,168.35,168.29,0.14216157]
[1762188519359,7.54091725,168.34,168.29,0.14216157]
[1762188519875,7.54091725,168.34,168.31,0.14216157]
[1762188520077,13.11523236,168.39,168.31,0.14216157]
[1762188520387,5.57431511,168.39,168.33,9.93098926]
[1762188520681,7.54091725,168.41,168.33,9.93098926]
[1762188520869,8.24091725,168.42,168.35,0.14216157]
[1762188521056,7.54091725,168.41,168.35,0.14216157]
[1762188521257,7.54091725,168.36,168.32,5.94106463]
[1762188521455,7.54091725,168.33,168.31,5.94133943]
[1762188521765,0.7,168.35,168.31,5.94133943]
[1762188521969,7.54091725,168.32,168.31,5.94133943]
[1762188522280,7.54091725,168.32,168.29,20.79728561]
[1762188523071,7.54091725,168.32,168.3,0.14216157]
[1762188523575,7.54091725,168.31,168.3,0.14216157]
[1762188523980,7.54091725,168.32,168.3,0.14216157]
[1762188524357,7.54091725,168.31,168.3,6.08359603]